Workbook

Sheet Practitioner
A1: Buy back cost calculator - Practitioner
B2: Scheme year
B3: 2015/16 | C3: 2016/17 | D3: 2017/18 | E3: 2018/19 | F3: 2019/20 | G3: 2020/21 | H3: 2021/22
A4: Dates employed during scheme year From | B4: 2015-04-01 | C4: 2016-04-01 | D4: 2017-04-01 | E4: 2018-04-01 | F4: 2019-04-01 | G4: 2020-04-01 | H4: 2021-04-01
A5: to | B5: 2016-03-31 | C5: 2017-03-31 | D5: 2018-03-31 | E5: 2019-03-31 | F5: 2020-03-31 | G5: 2021-03-31 | H5: 2022-03-31
A6: Buy back period (number of whole months) | B6: 0 | C6: 0 | D6: 0 | E6: 0 | F6: 0 | G6: 0 | H6: 0
A7: Total practitioner earnings in scheme year | B7: 0 | C7: 0 | D7: 0 | E7: 0 | F7: 0 | G7: 0 | H7: 0
A8: Self-employed | B8: No | C8: No | D8: No | E8: No | F8: No | G8: No | H8: No
A10: Tax relief applied | B10: =IF(B8="No",IF(B7<=Sheet2!$K$2,Sheet2!$K$1,IF(B7<=Sheet2!$L$2,Sheet2!$L$1,IF(B7<=Sheet2!$M$2,Sheet2!$M$1,Sheet2!$N$1))),0) -> 0 | C10: =IF(C8="No",IF(C7<=Sheet2!$K$3,Sheet2!$K$1,IF(C7<=Sheet2!$L$3,Sheet2!$L$1,IF(C7<=Sheet2!$M$3,Sheet2!$M$1,Sheet2!$N$1))),0) -> 0 | D10: =IF(D8="No",IF(D7<=Sheet2!$K$4,Sheet2!$K$1,IF(D7<=Sheet2!$L$4,Sheet2!$L$1,IF(D7<=Sheet2!$M$4,Sheet2!$M$1,Sheet2!$N$1))),0) -> 0 | E10: =IF(E8="No",IF(E7<=Sheet2!$K$5,Sheet2!$K$1,IF(E7<=Sheet2!$L$5,Sheet2!$L$1,IF(E7<=Sheet2!$M$5,Sheet2!$M$1,Sheet2!$N$1))),0) -> 0 | F10: =IF(F8="No",IF(F7<=Sheet2!$K$6,Sheet2!$K$1,IF(F7<=Sheet2!$L$6,Sheet2!$L$1,IF(F7<=Sheet2!$M$6,Sheet2!$M$1,Sheet2!$N$1))),0) -> 0 | G10: =IF(G8="No",IF(G7<=Sheet2!$K$7,Sheet2!$K$1,IF(G7<=Sheet2!$L$7,Sheet2!$L$1,IF(G7<=Sheet2!$M$7,Sheet2!$M$1,Sheet2!$N$1))),0) -> 0 | H10: =IF(H8="No",IF(H7<=Sheet2!$K$8,Sheet2!$K$1,IF(H7<=Sheet2!$L$8,Sheet2!$L$1,IF(H7<=Sheet2!$M$8,Sheet2!$M$1,Sheet2!$N$1))),0) -> 0
A11: Worked pays | B11: =IF(B4<=B5,B5-B4,"Error") -> 365 | C11: =IF(C4<=C5,(C5-C4)+1,"Error") -> 365 | D11: 365 | E11: 365 | F11: 366 | G11: 365 | H11: 365
A12: Monthly pay | B12: =B7*(365/B11)/12 -> 0 | C12: 0 | D12: 0 | E12: 0 | F12: 0 | G12: 0 | H12: 0
A13: Contribution rate | B13: =IF(B7<Sheet2!$E$3,Sheet2!$G$2,IF(B7<Sheet2!$E$4,Sheet2!$G$3,IF(B7<Sheet2!$E$5,Sheet2!$G$4,IF(B7<Sheet2!$E$6,Sheet2!$G$5,IF(B7<Sheet2!$E$7,Sheet2!$G$6,IF(B7<Sheet2!$E$8,Sheet2!$G$7,Sheet2!$G$8)))))) -> 0.05 | C13: =IF(C7<Sheet2!$E$3,Sheet2!$G$2,IF(C7<Sheet2!$E$4,Sheet2!$G$3,IF(C7<Sheet2!$E$5,Sheet2!$G$4,IF(C7<Sheet2!$E$6,Sheet2!$G$5,IF(C7<Sheet2!$E$7,Sheet2!$G$6,IF(C7<Sheet2!$E$8,Sheet2!$G$7,Sheet2!$G$8)))))) -> 0.05 | D13: =IF(D7<Sheet2!$E$3,Sheet2!$G$2,IF(D7<Sheet2!$E$4,Sheet2!$G$3,IF(D7<Sheet2!$E$5,Sheet2!$G$4,IF(D7<Sheet2!$E$6,Sheet2!$G$5,IF(D7<Sheet2!$E$7,Sheet2!$G$6,IF(D7<Sheet2!$E$8,Sheet2!$G$7,Sheet2!$G$8)))))) -> 0.05 | E13: =IF(E7<Sheet2!$E$3,Sheet2!$G$2,IF(E7<Sheet2!$E$4,Sheet2!$G$3,IF(E7<Sheet2!$E$5,Sheet2!$G$4,IF(E7<Sheet2!$E$6,Sheet2!$G$5,IF(E7<Sheet2!$E$7,Sheet2!$G$6,IF(E7<Sheet2!$E$8,Sheet2!$G$7,Sheet2!$G$8)))))) -> 0.05 | F13: =IF(F7<Sheet2!$E$3,Sheet2!$G$2,IF(F7<Sheet2!$E$4,Sheet2!$G$3,IF(F7<Sheet2!$E$5,Sheet2!$G$4,IF(F7<Sheet2!$E$6,Sheet2!$G$5,IF(F7<Sheet2!$E$7,Sheet2!$G$6,IF(F7<Sheet2!$E$8,Sheet2!$G$7,Sheet2!$G$8)))))) -> 0.05 | G13: =IF(G7<Sheet2!$E$3,Sheet2!$G$2,IF(G7<Sheet2!$E$4,Sheet2!$G$3,IF(G7<Sheet2!$E$5,Sheet2!$G$4,IF(G7<Sheet2!$E$6,Sheet2!$G$5,IF(G7<Sheet2!$E$7,Sheet2!$G$6,IF(G7<Sheet2!$E$8,Sheet2!$G$7,Sheet2!$G$8)))))) -> 0.05 | H13: =IF(H7<Sheet2!$E$3,Sheet2!$G$2,IF(H7<Sheet2!$E$4,Sheet2!$G$3,IF(H7<Sheet2!$E$5,Sheet2!$G$4,IF(H7<Sheet2!$E$6,Sheet2!$G$5,IF(H7<Sheet2!$E$7,Sheet2!$G$6,IF(H7<Sheet2!$E$8,Sheet2!$G$7,Sheet2!$G$8)))))) -> 0.05
A14: Date check | B14: =IF(B6*30>B11,"Error","") ->  | C14: =IF(C6*30>C11,"Error","") -> 
B15: =EDATE(B4,B6)-1 -> 2015-03-31 | C15: =EDATE(C4,C6)-1 -> 2016-03-31 | D15: 2017-03-31 | E15: 2018-03-31 | F15: 2019-03-31 | G15: 2020-03-31 | H15: 2021-03-31
A16: Mid point from scheme year employed | B16: =IF(B6<12,(B15-B4)/2+B4,(B5-B4)/2+B4) -> 2015-03-31T12:00:00 | C16: =IF(C6<12,(C15-C4)/2+C4,(C5-C4)/2+C4) -> 2016-03-31T12:00:00 | D16: 2017-03-31T12:00:00 | E16: 2018-03-31T12:00:00 | F16: 2019-03-31T12:00:00 | G16: 2020-03-31T12:00:00 | H16: 2021-03-31T12:00:00
A17: Average interest rate from mid point | B17: =Sheet1!D21 -> 1.152487596 | C17: =Sheet1!F21 -> 1.13993963 | D17: =Sheet1!H21 -> 1.130286938 | E17: =Sheet1!J21 -> 1.121424527 | F17: =Sheet1!L21 -> 1.110605129 | G17: =Sheet1!N21 -> 1.099586572 | H17: =Sheet1!P21 -> 1.091923637
A18: Days interest | B18: =_xlfn.DAYS(Sheet2!$X$1,B16) -> 3655 | C18: =_xlfn.DAYS(Sheet2!$X$1,C16) -> 3289 | D18: =_xlfn.DAYS(Sheet2!$X$1,D16) -> 2924 | E18: =_xlfn.DAYS(Sheet2!$X$1,E16) -> 2559 | F18: =_xlfn.DAYS(Sheet2!$X$1,F16) -> 2194 | G18: =_xlfn.DAYS(Sheet2!$X$1,G16) -> 1828 | H18: =_xlfn.DAYS(Sheet2!$X$1,H16) -> 1463
A20: Gross underpayment | B20: =B12*B6*B13 -> 0 | C20: 0 | D20: 0 | E20: 0 | F20: 0 | G20: 0 | H20: 0
A22: Total pensionable pay - Gross overpayment | B22: =B7-B20 -> 0 | C22: 0 | D22: 0 | E22: 0 | F22: 0 | G22: 0 | H22: 0
A23: Lower tax rate | B23: =IF(B22<=Sheet2!$K$2,Sheet2!$K$1,IF(B22<=Sheet2!$L$2,Sheet2!$L$1,IF(B22<=Sheet2!$M$2,Sheet2!$M$1,Sheet2!$N$1))) -> 0 | C23: =IF(C22<=Sheet2!$K$3,Sheet2!$K$1,IF(C22<=Sheet2!$L$3,Sheet2!$L$1,IF(C22<=Sheet2!$M$3,Sheet2!$M$1,Sheet2!$N$1))) -> 0 | D23: =IF(D22<=Sheet2!$K$4,Sheet2!$K$1,IF(D22<=Sheet2!$L$4,Sheet2!$L$1,IF(D22<=Sheet2!$M$4,Sheet2!$M$1,Sheet2!$N$1))) -> 0 | E23: =IF(E22<=Sheet2!$K$5,Sheet2!$K$1,IF(E22<=Sheet2!$L$5,Sheet2!$L$1,IF(E22<=Sheet2!$M$5,Sheet2!$M$1,Sheet2!$N$1))) -> 0 | F23: =IF(F22<=Sheet2!$K$6,Sheet2!$K$1,IF(F22<=Sheet2!$L$6,Sheet2!$L$1,IF(F22<=Sheet2!$M$6,Sheet2!$M$1,Sheet2!$N$1))) -> 0 | G23: =IF(G22<=Sheet2!$K$7,Sheet2!$K$1,IF(G22<=Sheet2!$L$7,Sheet2!$L$1,IF(G22<=Sheet2!$M$7,Sheet2!$M$1,Sheet2!$N$1))) -> 0 | H23: =IF(H22<=Sheet2!$K$8,Sheet2!$K$1,IF(H22<=Sheet2!$L$8,Sheet2!$L$1,IF(H22<=Sheet2!$M$8,Sheet2!$M$1,Sheet2!$N$1))) -> 0
A24: Amount at higher rate | B24: =IF(B10=B23,B20,IF(B7<=Sheet2!$K$2,B20,IF(B7<=Sheet2!$L$2,B7-Sheet2!$K$2,IF(B7<=Sheet2!$M$2,B7-Sheet2!$L$2,B7-Sheet2!$M$2)))) -> 0 | C24: =IF(C10=C23,C20,IF(C7<=Sheet2!$K$3,C20,IF(C7<=Sheet2!$L$3,C7-Sheet2!$K$3,IF(C7<=Sheet2!$M$3,C7-Sheet2!$L$3,C7-Sheet2!$M$3)))) -> 0 | D24: =IF(D10=D23,D20,IF(D7<=Sheet2!$K$4,D20,IF(D7<=Sheet2!$L$4,D7-Sheet2!$K$4,IF(D7<=Sheet2!$M$4,D7-Sheet2!$L$4,D7-Sheet2!$M$4)))) -> 0 | E24: =IF(E10=E23,E20,IF(E7<=Sheet2!$K$5,E20,IF(E7<=Sheet2!$L$5,E7-Sheet2!$K$5,IF(E7<=Sheet2!$M$5,E7-Sheet2!$L$5,E7-Sheet2!$M$5)))) -> 0 | F24: =IF(F10=F23,F20,IF(F7<=Sheet2!$K$6,F20,IF(F7<=Sheet2!$L$6,F7-Sheet2!$K$6,IF(F7<=Sheet2!$M$6,F7-Sheet2!$L$6,F7-Sheet2!$M$6)))) -> 0 | G24: =IF(G10=G23,G20,IF(G7<=Sheet2!$K$7,G20,IF(G7<=Sheet2!$L$7,G7-Sheet2!$K$7,IF(G7<=Sheet2!$M$7,G7-Sheet2!$L$7,G7-Sheet2!$M$7)))) -> 0 | H24: =IF(H10=H23,H20,IF(H7<=Sheet2!$K$8,H20,IF(H7<=Sheet2!$L$8,H7-Sheet2!$K$8,IF(H7<=Sheet2!$M$8,H7-Sheet2!$L$8,H7-Sheet2!$M$8)))) -> 0
A25: Amount at lower rate | B25: =B20-B24 -> 0 | C25: 0 | D25: 0 | E25: 0 | F25: 0 | G25: 0 | H25: 0
A26: Tax | B26: =IF(B8="No",(B24*B10)+(B25*B23),0) -> 0 | C26: =IF(C8="No",(C24*C10)+(C25*C23),0) -> 0 | D26: 0 | E26: 0 | F26: 0 | G26: 0 | H26: 0
A27: Net underpayment | B27: =B20-B26 -> 0 | C27: 0 | D27: 0 | E27: 0 | F27: 0 | G27: 0 | H27: 0
A28: Interest | B28: =B27*(B17-1) -> 0 | C28: =C27*(C17-1) -> 0 | D28: 0 | E28: 0 | F28: 0 | G28: 0 | H28: 0
A29: Employer contribution | B29: =B12*B6*Sheet2!$P$2 -> 0 | C29: =C12*C6*Sheet2!$P$2 -> 0 | D29: =D12*D6*Sheet2!$P$2 -> 0 | E29: =E12*E6*Sheet2!$P$2 -> 0 | F29: =F12*F6*Sheet2!$P$2 -> 0 | G29: =G12*G6*Sheet2!$P$2 -> 0 | H29: =H12*H6*Sheet2!$P$2 -> 0
B31: Net cost to buy back opted out service | C31: =SUM(B27:H27) -> 0
B32: Interest | C32: =SUM(B28:H28) -> 0
B33: Total | C33: =C31+C32 -> 0
B34: =IF(OR($B$7>250000,$C$7>250000,$D$7>250000,$E$7>250000,$F$7>250000,$G$7>250000,$H$7>250000,$I$7>250000),"Warning:","") ->  | C34: =IF(OR($B$7>250000,$C$7>250000,$D$7>250000,$E$7>250000,$F$7>250000,$G$7>250000,$H$7>250000,$I$7>250000),"Total Pensionable Pay exceeds £250,000","") -> 
B35: =IF(C35="","","Error:") ->  | C35: =IF(OR(B11="Error",C11="Error",D11="Error",E11="Error",F11="Error",G11="Error",H11="Error"),"Employed from date can not be later than employed to date",IF(OR(B14="Error",C14="Error",D14="Error",E14="Error",F14="Error",G14="Error",H14="Error"),"Cant buy back more service then employed during the year","")) -> 
A36: Annualised pay | B36: =B7*(365/B11) -> 0 | C36: 0 | D36: 0 | E36: 0 | F36: 0 | G36: 0 | H36: 0
A37: Contribution rate | B37: =IF(B36<Sheet2!$E$3,Sheet2!$G$2,IF(B36<Sheet2!$E$4,Sheet2!$G$3,IF(B36<Sheet2!$E$5,Sheet2!$G$4,IF(B36<Sheet2!$E$6,Sheet2!$G$5,IF(B36<Sheet2!$E$7,Sheet2!$G$6,IF(B36<Sheet2!$E$8,Sheet2!$G$7,Sheet2!$G$8)))))) -> 0.05 | C37: =IF(C36<Sheet2!$E$3,Sheet2!$G$2,IF(C36<Sheet2!$E$4,Sheet2!$G$3,IF(C36<Sheet2!$E$5,Sheet2!$G$4,IF(C36<Sheet2!$E$6,Sheet2!$G$5,IF(C36<Sheet2!$E$7,Sheet2!$G$6,IF(C36<Sheet2!$E$8,Sheet2!$G$7,Sheet2!$G$8)))))) -> 0.05 | D37: =IF(D36<Sheet2!$E$3,Sheet2!$G$2,IF(D36<Sheet2!$E$4,Sheet2!$G$3,IF(D36<Sheet2!$E$5,Sheet2!$G$4,IF(D36<Sheet2!$E$6,Sheet2!$G$5,IF(D36<Sheet2!$E$7,Sheet2!$G$6,IF(D36<Sheet2!$E$8,Sheet2!$G$7,Sheet2!$G$8)))))) -> 0.05 | E37: =IF(E36<Sheet2!$E$3,Sheet2!$G$2,IF(E36<Sheet2!$E$4,Sheet2!$G$3,IF(E36<Sheet2!$E$5,Sheet2!$G$4,IF(E36<Sheet2!$E$6,Sheet2!$G$5,IF(E36<Sheet2!$E$7,Sheet2!$G$6,IF(E36<Sheet2!$E$8,Sheet2!$G$7,Sheet2!$G$8)))))) -> 0.05 | F37: =IF(F36<Sheet2!$E$3,Sheet2!$G$2,IF(F36<Sheet2!$E$4,Sheet2!$G$3,IF(F36<Sheet2!$E$5,Sheet2!$G$4,IF(F36<Sheet2!$E$6,Sheet2!$G$5,IF(F36<Sheet2!$E$7,Sheet2!$G$6,IF(F36<Sheet2!$E$8,Sheet2!$G$7,Sheet2!$G$8)))))) -> 0.05 | G37: =IF(G36<Sheet2!$E$3,Sheet2!$G$2,IF(G36<Sheet2!$E$4,Sheet2!$G$3,IF(G36<Sheet2!$E$5,Sheet2!$G$4,IF(G36<Sheet2!$E$6,Sheet2!$G$5,IF(G36<Sheet2!$E$7,Sheet2!$G$6,IF(G36<Sheet2!$E$8,Sheet2!$G$7,Sheet2!$G$8)))))) -> 0.05 | H37: =IF(H36<Sheet2!$E$3,Sheet2!$G$2,IF(H36<Sheet2!$E$4,Sheet2!$G$3,IF(H36<Sheet2!$E$5,Sheet2!$G$4,IF(H36<Sheet2!$E$6,Sheet2!$G$5,IF(H36<Sheet2!$E$7,Sheet2!$G$6,IF(H36<Sheet2!$E$8,Sheet2!$G$7,Sheet2!$G$8)))))) -> 0.05
A39: Gross underpayment | B39: =B12*B6*B37 -> 0 | C39: =C12*C6*C37 -> 0 | D39: 0 | E39: 0 | F39: 0 | G39: 0 | H39: 0
A41: Total pensionable pay - Gross overpayment | B41: =B7-B39 -> 0 | C41: =C7-C39 -> 0 | D41: 0 | E41: 0 | F41: 0 | G41: 0 | H41: 0
A42: Lower tax rate | B42: =IF(B41<=Sheet2!$K$2,Sheet2!$K$1,IF(B41<=Sheet2!$L$2,Sheet2!$L$1,IF(B41<=Sheet2!$M$2,Sheet2!$M$1,Sheet2!$N$1))) -> 0 | C42: =IF(C41<=Sheet2!$K$3,Sheet2!$K$1,IF(C41<=Sheet2!$L$3,Sheet2!$L$1,IF(C41<=Sheet2!$M$3,Sheet2!$M$1,Sheet2!$N$1))) -> 0 | D42: =IF(D41<=Sheet2!$K$4,Sheet2!$K$1,IF(D41<=Sheet2!$L$4,Sheet2!$L$1,IF(D41<=Sheet2!$M$4,Sheet2!$M$1,Sheet2!$N$1))) -> 0 | E42: =IF(E41<=Sheet2!$K$5,Sheet2!$K$1,IF(E41<=Sheet2!$L$5,Sheet2!$L$1,IF(E41<=Sheet2!$M$5,Sheet2!$M$1,Sheet2!$N$1))) -> 0 | F42: =IF(F41<=Sheet2!$K$6,Sheet2!$K$1,IF(F41<=Sheet2!$L$6,Sheet2!$L$1,IF(F41<=Sheet2!$M$6,Sheet2!$M$1,Sheet2!$N$1))) -> 0 | G42: =IF(G41<=Sheet2!$K$7,Sheet2!$K$1,IF(G41<=Sheet2!$L$7,Sheet2!$L$1,IF(G41<=Sheet2!$M$7,Sheet2!$M$1,Sheet2!$N$1))) -> 0 | H42: =IF(H41<=Sheet2!$K$8,Sheet2!$K$1,IF(H41<=Sheet2!$L$8,Sheet2!$L$1,IF(H41<=Sheet2!$M$8,Sheet2!$M$1,Sheet2!$N$1))) -> 0
A43: Amount at higher rate | B43: =IF(B10=B42,B39,IF(B7<=Sheet2!$K$2,B39,IF(B7<=Sheet2!$L$2,B7-Sheet2!$K$2,IF(B7<=Sheet2!$M$2,B7-Sheet2!$L$2,B7-Sheet2!$M$2)))) -> 0 | C43: =IF(C10=C42,C39,IF(C7<=Sheet2!$K$3,C39,IF(C7<=Sheet2!$L$3,C7-Sheet2!$K$3,IF(C7<=Sheet2!$M$3,C7-Sheet2!$L$3,C7-Sheet2!$M$3)))) -> 0 | D43: =IF(D10=D42,D39,IF(D7<=Sheet2!$K$4,D39,IF(D7<=Sheet2!$L$4,D7-Sheet2!$K$4,IF(D7<=Sheet2!$M$4,D7-Sheet2!$L$4,D7-Sheet2!$M$4)))) -> 0 | E43: =IF(E10=E42,E39,IF(E7<=Sheet2!$K$5,E39,IF(E7<=Sheet2!$L$5,E7-Sheet2!$K$5,IF(E7<=Sheet2!$M$5,E7-Sheet2!$L$5,E7-Sheet2!$M$5)))) -> 0 | F43: =IF(F10=F42,F39,IF(F7<=Sheet2!$K$6,F39,IF(F7<=Sheet2!$L$6,F7-Sheet2!$K$6,IF(F7<=Sheet2!$M$6,F7-Sheet2!$L$6,F7-Sheet2!$M$6)))) -> 0 | G43: =IF(G10=G42,G39,IF(G7<=Sheet2!$K$7,G39,IF(G7<=Sheet2!$L$7,G7-Sheet2!$K$7,IF(G7<=Sheet2!$M$7,G7-Sheet2!$L$7,G7-Sheet2!$M$7)))) -> 0 | H43: =IF(H10=H42,H39,IF(H7<=Sheet2!$K$8,H39,IF(H7<=Sheet2!$L$8,H7-Sheet2!$K$8,IF(H7<=Sheet2!$M$8,H7-Sheet2!$L$8,H7-Sheet2!$M$8)))) -> 0
A44: Amount at lower rate | B44: =B39-B43 -> 0 | C44: 0 | D44: 0 | E44: 0 | F44: 0 | G44: 0 | H44: 0
A45: Tax | B45: =IF(B8="No",(B43*B10)+(B44*B42),0) -> 0 | C45: =IF(C8="No",(C43*C10)+(C44*C42),0) -> 0 | D45: =IF(D8="No",(D43*D10)+(D44*D42),0) -> 0 | E45: 0 | F45: 0 | G45: 0 | H45: 0
A46: Net underpayment | B46: =B39-B45 -> 0 | C46: 0 | D46: 0 | E46: 0 | F46: 0 | G46: 0 | H46: 0
A48: Additional underpayment if choose Reformed Scheme at retirement | B48: =B46-B27 -> 0 | C48: =C46-C27 -> 0 | D48: 0 | E48: 0 | F48: 0 | G48: 0 | H48: 0
A50: Additional cost if choose Reformed 2015 Scheme at retirement | D50: =SUM(B48:H48) -> 0 | E50: Interest will be added to this amount until the amount is repaid

Sheet Sheet1 (hidden)
A1: Effective from | B1: NS&I Rate | C1: 2015/16 Days | D1: 2015/16 Rate | E1: 2016/17 Days | F1: 2016/17 Rate | G1: 2017/18 Days | H1: 2017/18 Rate | I1: 2018/19 Days | J1: 2018/19 Rate | K1: 2019/20 Days | L1: 2019/20 Rate | M1: 2020/21 Days | N1: 2020/21 Rate | O1: 2021/22 Days | P1: 2021/22 Rate | Q1: =TODAY() -> 2025-03-05 | R1: =Q1+28 -> 2025-04-02
A2: 2025-03-05 | B2: 1.033 | C2: =$R$1-$A$2 -> 28 | D2: =B2^(C2/365.25) -> 1.002492029 | E2: =$R$1-$A$2 -> 28 | F2: =B2^(E2/365.25) -> 1.002492029 | G2: =$R$1-$A$2 -> 28 | H2: =B2^(G2/365.25) -> 1.002492029 | I2: =$R$1-$A$2 -> 28 | J2: =B2^(I2/365.25) -> 1.002492029 | K2: =$R$1-$A$2 -> 28 | L2: =B2^(K2/365.25) -> 1.002492029 | M2: =$R$1-$A$2 -> 28 | N2: =B2^(M2/365.25) -> 1.002492029 | O2: =$R$1-$A$2 -> 28 | P2: =B2^(O2/365.25) -> 1.002492029
A3: 2024-12-20 | B3: 1.035 | C3: =$A2-$A3 -> 75 | D3: =B3^(C3/365.25) -> 1.007088957 | E3: =$A2-$A3 -> 75 | F3: =B3^(E3/365.25) -> 1.007088957 | G3: =$A2-$A3 -> 75 | H3: =B3^(G3/365.25) -> 1.007088957 | I3: =$A2-$A3 -> 75 | J3: =B3^(I3/365.25) -> 1.007088957 | K3: =$A2-$A3 -> 75 | L3: =B3^(K3/365.25) -> 1.007088957 | M3: =$A2-$A3 -> 75 | N3: =B3^(M3/365.25) -> 1.007088957 | O3: =$A2-$A3 -> 75 | P3: =B3^(O3/365.25) -> 1.007088957
A4: 2024-11-20 | B4: 1.0375 | C4: 30 | D4: 1.003028311 | E4: 30 | F4: 1.003028311 | G4: 30 | H4: 1.003028311 | I4: 30 | J4: 1.003028311 | K4: 30 | L4: 1.003028311 | M4: 30 | N4: 1.003028311 | O4: 30 | P4: 1.003028311
A5: 2024-05-23 | B5: 1.04 | C5: 181 | D5: 1.019625969 | E5: 181 | F5: 1.019625969 | G5: 181 | H5: 1.019625969 | I5: 181 | J5: 1.019625969 | K5: 181 | L5: 1.019625969 | M5: 181 | N5: 1.019625969 | O5: 181 | P5: 1.019625969
A6: 2023-08-18 | B6: 1.0365 | C6: =$A5-$A6 -> 279 | D6: =B6^(C6/365.25) -> 1.02776252 | E6: =$A5-$A6 -> 279 | F6: =B6^(E6/365.25) -> 1.02776252 | G6: =$A5-$A6 -> 279 | H6: =B6^(G6/365.25) -> 1.02776252 | I6: =$A5-$A6 -> 279 | J6: =B6^(I6/365.25) -> 1.02776252 | K6: =$A5-$A6 -> 279 | L6: =B6^(K6/365.25) -> 1.02776252 | M6: =$A5-$A6 -> 279 | N6: =B6^(M6/365.25) -> 1.02776252 | O6: =$A5-$A6 -> 279 | P6: =B6^(O6/365.25) -> 1.02776252
A7: 2023-06-13 | B7: 1.034 | C7: =$A6-$A7 -> 66 | D7: =B7^(C7/365.25) -> 1.00605989 | E7: 66 | F7: =B7^(E7/365.25) -> 1.00605989 | G7: 66 | H7: =B7^(G7/365.25) -> 1.00605989 | I7: 66 | J7: =B7^(I7/365.25) -> 1.00605989 | K7: 66 | L7: =B7^(K7/365.25) -> 1.00605989 | M7: 66 | N7: =B7^(M7/365.25) -> 1.00605989 | O7: 66 | P7: =B7^(O7/365.25) -> 1.00605989
A8: 2023-02-14 | B8: 1.0285 | C8: 119 | D8: 1.009197606 | E8: 119 | F8: 1.009197606 | G8: 119 | H8: 1.009197606 | I8: 119 | J8: 1.009197606 | K8: 119 | L8: 1.009197606 | M8: 119 | N8: 1.009197606 | O8: 119 | P8: 1.009197606
A9: 2023-01-24 | B9: 1.026 | C9: 21 | D9: 1.001476853 | E9: 21 | F9: 1.001476853 | G9: 21 | H9: 1.001476853 | I9: 21 | J9: 1.001476853 | K9: 21 | L9: 1.001476853 | M9: 21 | N9: 1.001476853 | O9: 21 | P9: 1.001476853
A10: 2022-12-13 | B10: 1.023 | C10: 42 | D10: 1.002618229 | E10: 42 | F10: 1.002618229 | G10: 42 | H10: 1.002618229 | I10: 42 | J10: 1.002618229 | K10: 42 | L10: 1.002618229 | M10: 42 | N10: 1.002618229 | O10: 42 | P10: 1.002618229
A11: 2022-10-25 | B11: 1.018 | C11: =$A10-$A11 -> 49 | D11: 1.002396175 | E11: =$A10-$A11 -> 49 | F11: 1.002396175 | G11: =$A10-$A11 -> 49 | H11: 1.002396175 | I11: =$A10-$A11 -> 49 | J11: 1.002396175 | K11: =$A10-$A11 -> 49 | L11: 1.002396175 | M11: =$A10-$A11 -> 49 | N11: 1.002396175 | O11: =$A10-$A11 -> 49 | P11: 1.002396175
A12: 2022-07-21 | B12: 1.012 | C12: =IF(Practitioner!$B$16<A11,IF(Practitioner!$B$16>A12,A11-Practitioner!$B$16,A11-A12),0) -> 96 | D12: 1.00314015 | E12: =IF(Practitioner!$C$16<$A11,IF(Practitioner!$C$16>$A12,$A11-Practitioner!$C$16,$A11-$A12),0) -> 96 | F12: 1.00314015 | G12: =IF(Practitioner!$D$16<$A11,IF(Practitioner!$D$16>$A12,$A11-Practitioner!$D$16,$A11-$A12),0) -> 96 | H12: 1.00314015 | I12: =IF(Practitioner!$E$16<$A11,IF(Practitioner!$E$16>$A12,$A11-Practitioner!$E$16,$A11-$A12),0) -> 96 | J12: 1.00314015 | K12: =IF(Practitioner!$F$16<$A11,IF(Practitioner!$F$16>$A12,$A11-Practitioner!$F$16,$A11-$A12),0) -> 96 | L12: 1.00314015 | M12: =IF(Practitioner!$G$16<$A11,IF(Practitioner!$G$16>$A12,$A11-Practitioner!$G$16,$A11-$A12),0) -> 96 | N12: 1.00314015 | O12: =IF(Practitioner!$H$16<$A11,IF(Practitioner!$H$16>$A12,$A11-Practitioner!$H$16,$A11-$A12),0) -> 96 | P12: 1.00314015
A13: 2022-02-10 | B13: 1.005 | C13: =IF(Practitioner!$B$16<A12,IF(Practitioner!$B$16>A13,A12-Practitioner!$B$16,A12-A13),0) -> 161 | D13: 1.002200897 | E13: =IF(Practitioner!$C$16<$A12,IF(Practitioner!$C$16>$A13,$A12-Practitioner!$C$16,$A12-$A13),0) -> 161 | F13: 1.002200897 | G13: =IF(Practitioner!$D$16<$A12,IF(Practitioner!$D$16>$A13,$A12-Practitioner!$D$16,$A12-$A13),0) -> 161 | H13: 1.002200897 | I13: =IF(Practitioner!$E$16<$A12,IF(Practitioner!$E$16>$A13,$A12-Practitioner!$E$16,$A12-$A13),0) -> 161 | J13: 1.002200897 | K13: =IF(Practitioner!$F$16<$A12,IF(Practitioner!$F$16>$A13,$A12-Practitioner!$F$16,$A12-$A13),0) -> 161 | L13: 1.002200897 | M13: =IF(Practitioner!$G$16<$A12,IF(Practitioner!$G$16>$A13,$A12-Practitioner!$G$16,$A12-$A13),0) -> 161 | N13: 1.002200897 | O13: =IF(Practitioner!$H$16<$A12,IF(Practitioner!$H$16>$A13,$A12-Practitioner!$H$16,$A12-$A13),0) -> 161 | P13: 1.002200897
A14: 2021-12-29 | B14: 1.0035 | C14: =IF(Practitioner!$B$16<A13,IF(Practitioner!$B$16>A14,A13-Practitioner!$B$16,A13-A14),0) -> 43 | D14: 1.000411412 | E14: =IF(Practitioner!$C$16<$A13,IF(Practitioner!$C$16>$A14,$A13-Practitioner!$C$16,$A13-$A14),0) -> 43 | F14: 1.000411412 | G14: =IF(Practitioner!$D$16<$A13,IF(Practitioner!$D$16>$A14,$A13-Practitioner!$D$16,$A13-$A14),0) -> 43 | H14: 1.000411412 | I14: =IF(Practitioner!$E$16<$A13,IF(Practitioner!$E$16>$A14,$A13-Practitioner!$E$16,$A13-$A14),0) -> 43 | J14: 1.000411412 | K14: =IF(Practitioner!$F$16<$A13,IF(Practitioner!$F$16>$A14,$A13-Practitioner!$F$16,$A13-$A14),0) -> 43 | L14: 1.000411412 | M14: =IF(Practitioner!$G$16<$A13,IF(Practitioner!$G$16>$A14,$A13-Practitioner!$G$16,$A13-$A14),0) -> 43 | N14: 1.000411412 | O14: =IF(Practitioner!$H$16<$A13,IF(Practitioner!$H$16>$A14,$A13-Practitioner!$H$16,$A13-$A14),0) -> 43 | P14: 1.000411412
A15: 2020-11-24 | B15: 1.0015 | C15: =IF(Practitioner!$B$16<A14,IF(Practitioner!$B$16>A15,A14-Practitioner!$B$16,A14-A15),0) -> 400 | D15: 1.001642828 | E15: =IF(Practitioner!$C$16<$A14,IF(Practitioner!$C$16>$A15,$A14-Practitioner!$C$16,$A14-$A15),0) -> 400 | F15: 1.001642828 | G15: =IF(Practitioner!$D$16<$A14,IF(Practitioner!$D$16>$A15,$A14-Practitioner!$D$16,$A14-$A15),0) -> 400 | H15: 1.001642828 | I15: =IF(Practitioner!$E$16<$A14,IF(Practitioner!$E$16>$A15,$A14-Practitioner!$E$16,$A14-$A15),0) -> 400 | J15: 1.001642828 | K15: =IF(Practitioner!$F$16<$A14,IF(Practitioner!$F$16>$A15,$A14-Practitioner!$F$16,$A14-$A15),0) -> 400 | L15: 1.001642828 | M15: =IF(Practitioner!$G$16<$A14,IF(Practitioner!$G$16>$A15,$A14-Practitioner!$G$16,$A14-$A15),0) -> 400 | N15: 1.001642828 | O15: =IF(Practitioner!$H$16<$A14,IF(Practitioner!$H$16>$A15,$A14-Practitioner!$H$16,$A14-$A15),0) -> 272.5 | P15: 1.001118884
A16: 2018-10-01 | B16: 1.01 | C16: =IF(Practitioner!$B$16<A15,IF(Practitioner!$B$16>A16,A15-Practitioner!$B$16,A15-A16),0) -> 785 | D16: 1.021615685 | E16: =IF(Practitioner!$C$16<$A15,IF(Practitioner!$C$16>$A16,$A15-Practitioner!$C$16,$A15-$A16),0) -> 785 | F16: 1.021615685 | G16: =IF(Practitioner!$D$16<$A15,IF(Practitioner!$D$16>$A16,$A15-Practitioner!$D$16,$A15-$A16),0) -> 785 | H16: 1.021615685 | I16: =IF(Practitioner!$E$16<$A15,IF(Practitioner!$E$16>$A16,$A15-Practitioner!$E$16,$A15-$A16),0) -> 785 | J16: 1.021615685 | K16: =IF(Practitioner!$F$16<$A15,IF(Practitioner!$F$16>$A16,$A15-Practitioner!$F$16,$A15-$A16),0) -> 603.5 | L16: 1.016576756 | M16: =IF(Practitioner!$G$16<$A15,IF(Practitioner!$G$16>$A16,$A15-Practitioner!$G$16,$A15-$A16),0) -> 237.5 | N16: 1.006491075 | O16: =IF(Practitioner!$H$16<$A15,IF(Practitioner!$H$16>$A16,$A15-Practitioner!$H$16,$A15-$A16),0) -> 0 | P16: 1
A17: 2017-12-01 | B17: 1.0095 | C17: =IF(Practitioner!$B$16<A16,IF(Practitioner!$B$16>A17,A16-Practitioner!$B$16,A16-A17),0) -> 304 | D17: 1.007900638 | E17: =IF(Practitioner!$C$16<$A16,IF(Practitioner!$C$16>$A17,$A16-Practitioner!$C$16,$A16-$A17),0) -> 304 | F17: 1.007900638 | G17: =IF(Practitioner!$D$16<$A16,IF(Practitioner!$D$16>$A17,$A16-Practitioner!$D$16,$A16-$A17),0) -> 304 | H17: 1.007900638 | I17: =IF(Practitioner!$E$16<$A16,IF(Practitioner!$E$16>$A17,$A16-Practitioner!$E$16,$A16-$A17),0) -> 183.5 | J17: 1.004761531 | K17: =IF(Practitioner!$F$16<$A16,IF(Practitioner!$F$16>$A17,$A16-Practitioner!$F$16,$A16-$A17),0) -> 0 | L17: 1 | M17: =IF(Practitioner!$G$16<$A16,IF(Practitioner!$G$16>$A17,$A16-Practitioner!$G$16,$A16-$A17),0) -> 0 | N17: 1 | O17: =IF(Practitioner!$H$16<$A16,IF(Practitioner!$H$16>$A17,$A16-Practitioner!$H$16,$A16-$A17),0) -> 0 | P17: 1
A18: 2017-05-01 | B18: 1.007 | C18: =IF(Practitioner!$B$16<A17,IF(Practitioner!$B$16>A18,A17-Practitioner!$B$16,A17-A18),0) -> 214 | D18: 1.004095376 | E18: =IF(Practitioner!$C$16<$A17,IF(Practitioner!$C$16>$A18,$A17-Practitioner!$C$16,$A17-$A18),0) -> 214 | F18: 1.004095376 | G18: =IF(Practitioner!$D$16<$A17,IF(Practitioner!$D$16>$A18,$A17-Practitioner!$D$16,$A17-$A18),0) -> 214 | H18: 1.004095376 | I18: =IF(Practitioner!$E$16<$A17,IF(Practitioner!$E$16>$A18,$A17-Practitioner!$E$16,$A17-$A18),0) -> 0 | J18: 1 | K18: =IF(Practitioner!$F$16<$A17,IF(Practitioner!$F$16>$A18,$A17-Practitioner!$F$16,$A17-$A18),0) -> 0 | L18: 1 | M18: =IF(Practitioner!$G$16<$A17,IF(Practitioner!$G$16>$A18,$A17-Practitioner!$G$16,$A17-$A18),0) -> 0 | N18: 1 | O18: =IF(Practitioner!$H$16<$A17,IF(Practitioner!$H$16>$A18,$A17-Practitioner!$H$16,$A17-$A18),0) -> 0 | P18: 1
A19: 2016-06-06 | B19: 1.008 | C19: =IF(Practitioner!$B$16<A18,IF(Practitioner!$B$16>A19,A18-Practitioner!$B$16,A18-A19),0) -> 329 | D19: 1.007203171 | E19: =IF(Practitioner!$C$16<$A18,IF(Practitioner!$C$16>$A19,$A18-Practitioner!$C$16,$A18-$A19),0) -> 329 | F19: 1.007203171 | G19: =IF(Practitioner!$D$16<$A18,IF(Practitioner!$D$16>$A19,$A18-Practitioner!$D$16,$A18-$A19),0) -> 30.5 | H19: 1.000665599 | I19: =IF(Practitioner!$E$16<$A18,IF(Practitioner!$E$16>$A19,$A18-Practitioner!$E$16,$A18-$A19),0) -> 0 | J19: 1 | K19: =IF(Practitioner!$F$16<$A18,IF(Practitioner!$F$16>$A19,$A18-Practitioner!$F$16,$A18-$A19),0) -> 0 | L19: 1 | M19: =IF(Practitioner!$G$16<$A18,IF(Practitioner!$G$16>$A19,$A18-Practitioner!$G$16,$A18-$A19),0) -> 0 | N19: 1 | O19: =IF(Practitioner!$H$16<$A18,IF(Practitioner!$H$16>$A19,$A18-Practitioner!$H$16,$A18-$A19),0) -> 0 | P19: 1
A20: 2015-04-01 | B20: 1.011 | C20: =IF(Practitioner!$B$16<A19,IF(Practitioner!$B$16>A20,A19-Practitioner!$B$16,A19-A20),0) -> 432 | D20: 1.013023305 | E20: =IF(Practitioner!$C$16<$A19,IF(Practitioner!$C$16>$A20,$A19-Practitioner!$C$16,$A19-$A20),0) -> 66.5 | F20: 1.001993788 | G20: =IF(Practitioner!$D$16<$A19,IF(Practitioner!$D$16>$A20,$A19-Practitioner!$D$16,$A19-$A20),0) -> 0 | H20: 1 | I20: =IF(Practitioner!$E$16<$A19,IF(Practitioner!$E$16>$A20,$A19-Practitioner!$E$16,$A19-$A20),0) -> 0 | J20: 1 | K20: =IF(Practitioner!$F$16<$A19,IF(Practitioner!$F$16>$A20,$A19-Practitioner!$F$16,$A19-$A20),0) -> 0 | L20: 1 | M20: =IF(Practitioner!$G$16<$A19,IF(Practitioner!$G$16>$A20,$A19-Practitioner!$G$16,$A19-$A20),0) -> 0 | N20: 1 | O20: =IF(Practitioner!$H$16<$A19,IF(Practitioner!$H$16>$A20,$A19-Practitioner!$H$16,$A19-$A20),0) -> 0 | P20: 1
D21: =D2*D3*D4*D5*D6*D7*D8*D9*D10*D11*D12*D13*D14*D15*D16*D17*D18*D19*D20 -> 1.152487596 | F21: =F2*F3*F4*F5*F6*F7*F8*F9*F10*F11*F12*F13*F14*F15*F16*F17*F18*F19*F20 -> 1.13993963 | H21: 1.130286938 | J21: 1.121424527 | L21: 1.110605129 | N21: 1.099586572 | P21: 1.091923637

Sheet Sheet2 (hidden)
A1: Whole | B1: 0 | D1: Tier | E1: Lower Pay | F1: Upper Pay | G1: Rate | K1: 0 | L1: 0.2 | M1: 0.4 | N1: 0.45 | P1: Employer Rate | S1: Effective from | T1: NS&I Rate | W1: =TODAY() -> 2025-03-05 | X1: =W1+28 -> 2025-04-02 | Y1: No
A2: Part | B2: 1 | D2: 1 | E2: 0 | F2: 15431.99 | G2: 0.05 | J2: 2015/16 | K2: 10600 | L2: 42385 | M2: 150000 | P2: 0.1438 | S2: 2023-08-18 | T2: 0.0365 | U2: =W1-S2 -> 565 | Y2: Yes
B3: 2 | D3: 2 | E3: 15432 | F3: 21477.99 | G3: 0.056 | J3: 2016/17 | K3: 11000 | L3: 43000 | M3: 150000 | P3: 0.206 | S3: 2023-06-13 | T3: 0.034 | U3: =S2-S3 -> 66
B4: 3 | D4: 3 | E4: 21478 | F4: 26823.99 | G4: 0.071 | J4: 2017/18 | K4: 11500 | L4: 45000 | M4: 150000 | S4: 2023-02-14 | T4: 0.0285 | U4: =S3-S4 -> 119
B5: 4 | D5: 4 | E5: 26824 | F5: 47846 | G5: 0.093 | J5: 2018/19 | K5: 11850 | L5: 46350 | M5: 150000 | S5: 2023-01-24 | T5: 0.026 | U5: 21
B6: 5 | D6: 5 | E6: 47846 | F6: 70630.99 | G6: 0.125 | J6: 2019/20 | K6: 12500 | L6: 50000 | M6: 150000 | S6: 2022-12-13 | T6: 0.023 | U6: 42
B7: 6 | D7: 6 | E7: 70631 | F7: 111376.99 | G7: 0.135 | J7: 2020/21 | K7: 12500 | L7: 50000 | M7: 150000 | S7: 2022-10-25 | T7: 0.018 | U7: 49
B8: 7 | D8: 7 | E8: 111377 | F8: 999999 | G8: 0.145 | J8: 2021/22 | K8: 12570 | L8: 50270 | M8: 150000 | S8: 2022-07-21 | T8: 0.012 | U8: 96
B9: 8 | S9: 2022-02-10 | T9: 0.005 | U9: 161 | V9: =(($T$9*$U$9)+($T$8*$U$8)+($T$7*$U$7)+($T$6*$U$6)+($T$5*$U$5)+($T$4*$U$4)+($T$3*$U$3)+($T$2*$U$2))/SUM($U$2:$U$9) -> 0.0273538874
B10: 9 | S10: 2021-12-29 | T10: 0.0035 | U10: 43 | V10: =(($T$10*$U$10)+($T$9*$U$9)+($T$8*$U$8)+($T$7*$U$7)+($T$6*$U$6)+($T$5*$U$5)+($T$4*$U$4)+($T$3*$U$3)+($T$2*$U$2))/SUM($U$2:$U$10) -> 0.0264711704
B11: 10 | S11: 2020-11-24 | T11: 0.0015 | U11: 400 | V11: =(($T$11*$U$11)+($T$10*$U$10)+($T$9*$U$9)+($T$8*$U$8)+($T$7*$U$7)+($T$6*$U$6)+($T$5*$U$5)+($T$4*$U$4)+($T$3*$U$3)+($T$2*$U$2))/SUM($U$2:$U$11) -> 0.02007650448
B12: 11 | S12: 2018-10-01 | T12: 0.01 | U12: 785 | V12: =(($T$12*$U$12)+($T$11*$U$11)+($T$10*$U$10)+($T$9*$U$9)+($T$8*$U$8)+($T$7*$U$7)+($T$6*$U$6)+($T$5*$U$5)+($T$4*$U$4)+($T$3*$U$3)+($T$2*$U$2))/SUM($U$2:$U$12) -> 0.01670622071
B13: 12 | S13: 2017-12-01 | T13: 0.0095 | U13: 304 | V13: =(($T$13*$U$13)+($T$12*$U$12)+($T$11*$U$11)+($T$10*$U$10)+($T$9*$U$9)+($T$8*$U$8)+($T$7*$U$7)+($T$6*$U$6)+($T$5*$U$5)+($T$4*$U$4)+($T$3*$U$3)+($T$2*$U$2))/SUM($U$2:$U$13) -> 0.01587985666
S14: 2017-05-01 | T14: 0.007 | U14: 214 | V14: =(($T$14*$U$14)+($T$13*$U$13)+($T$12*$U$12)+($T$11*$U$11)+($T$10*$U$10)+($T$9*$U$9)+($T$8*$U$8)+($T$7*$U$7)+($T$6*$U$6)+($T$5*$U$5)+($T$4*$U$4)+($T$3*$U$3)+($T$2*$U$2))/SUM($U$2:$U$14) -> 0.01521657941
S15: 2016-06-06 | T15: 0.008 | U15: 329 | V15: =(($T$15*$U$15)+($T$14*$U$14)+($T$13*$U$13)+($T$12*$U$12)+($T$11*$U$11)+($T$10*$U$10)+($T$9*$U$9)+($T$8*$U$8)+($T$7*$U$7)+($T$6*$U$6)+($T$5*$U$5)+($T$4*$U$4)+($T$3*$U$3)+($T$2*$U$2))/SUM($U$2:$U$15) -> 0.01447323106
S16: 2015-04-01 | T16: 0.011 | U16: 432 | V16: =(($T$16*$U$16)+($T$15*$U$15)+($T$14*$U$14)+($T$13*$U$13)+($T$12*$U$12)+($T$11*$U$11)+($T$10*$U$10)+($T$9*$U$9)+($T$8*$U$8)+($T$7*$U$7)+($T$6*$U$6)+($T$5*$U$5)+($T$4*$U$4)+($T$3*$U$3)+($T$2*$U$2))/SUM($U$2:$U$16) -> 0.01405943188
